[Event "15. ročník Dobrovický rapid Tereos TTD a.s."]
[Site "Dobrovice, Czech Republic"]
[Date "2020.02.29"]
[Round "3.5"]
[White "Suran Jan"]
[Black "Flasar Jaroslav"]
[Result "1-0"]
[TimeControl "15m + 3s / tah"]
[WhiteElo "2335"]
[BlackElo "1969"]

1. e4 {[%clk 00:15:03]} c5 {[%clk 00:15:00]} {[%emt 00:00:09]} 2. Nf3 {[%clk
00:15:05]} {[%emt 00:00:01]} e6 {[%clk 00:15:02]} {[%emt 00:00:01]} 3. d4
{[%clk 00:15:04]} {[%emt 00:00:05]} cxd4 {[%clk 00:15:03]} {[%emt 00:00:01]} 4.
Nxd4 {[%clk 00:15:05]} {[%emt 00:00:01]} a6 {[%clk 00:15:05]} {[%emt 00:00:02]}
5. Nc3 {[%clk 00:15:04]} {[%emt 00:00:04]} Nc6 {[%clk 00:15:06]} {[%emt
00:00:02]} 6. Nxc6 {[%clk 00:14:56]} {[%emt 00:00:11]} bxc6 {[%clk 00:15:07]}
{[%emt 00:00:01]} 7. Bd3 {[%clk 00:14:57]} {[%emt 00:00:01]} d5 {[%clk
00:15:09]} {[%emt 00:00:02]} 8. O-O {[%clk 00:14:58]} {[%emt 00:00:03]} g6
{[%clk 00:15:06]} {[%emt 00:00:06]} 9. Qe2 {[%clk 00:14:28]} {[%emt 00:00:32]}
Bg7 {[%clk 00:14:58]} {[%emt 00:00:11]} 10. Na4 {[%clk 00:14:00]} {[%emt
00:00:31]} Qa5 {[%clk 00:14:41]} {[%emt 00:00:21]} 11. b3 {[%clk 00:12:50]}
{[%emt 00:01:14]} Bxa1 {[%emt 00:00:14]} 12. Bd2 Qd8 {[%clk 00:13:28]} {[%emt
00:01:01]} 13. Rxa1 {[%clk 00:12:51]} {[%emt 00:00:02]} Ne7 {[%clk 00:13:28]}
{[%emt 00:00:04]} 14. Bh6 {[%clk 00:10:54]} {[%emt 00:02:01]} Qc7 {[%clk
00:11:48]} {[%emt 00:01:42]} 15. Qf3 {[%clk 00:09:19]} {[%emt 00:01:34]} dxe4
{[%clk 00:10:24]} {[%emt 00:01:32]} 16. Bxe4 {[%clk 00:09:19]} {[%emt
00:00:02]} f5 {[%clk 00:10:26]} {[%emt 00:00:01]} 17. Bd3 {[%clk 00:09:10]}
{[%emt 00:00:12]} e5 {[%clk 00:10:17]} {[%emt 00:00:12]} 18. Bc4 {[%clk
00:08:57]} {[%emt 00:00:16]} e4 {[%clk 00:09:45]} {[%emt 00:00:35]} 19. Qc3
{[%clk 00:08:50]} {[%emt 00:00:10]} Rg8 {[%clk 00:09:16]} {[%emt 00:00:33]} 20.
Rd1 {[%clk 00:08:14]} {[%emt 00:00:38]} Ra7 {[%clk 00:08:49]} {[%emt 00:00:31]}
21. Bxg8 {[%clk 00:07:21]} {[%emt 00:00:56]} Nxg8 {[%clk 00:08:50]} {[%emt
00:00:02]} 22. Be3 {[%clk 00:07:23]} Ra8 {[%clk 00:06:55]} {[%emt 00:01:58]} 23.
Bb6 {[%clk 00:06:31]} {[%emt 00:00:55]} Qb7 {[%clk 00:06:25]} {[%emt 00:00:33]}
24. Rd8+ {[%clk 00:05:19]} {[%emt 00:01:15]} Kf7 {[%clk 00:06:04]} {[%emt
00:00:25]} 25. Qh8 {[%clk 00:05:14]} {[%emt 00:00:08]} Nf6 {[%clk 00:05:45]}
{[%emt 00:00:22]} 26. Qf8+ {[%clk 00:04:42]} {[%emt 00:00:34]} Ke6 {[%clk
00:05:45]} {[%emt 00:00:04]} 27. Nc5+ {[%clk 00:04:35]} {[%emt 00:00:10]} 1-0

[Event "15. ročník Dobrovický rapid Tereos TTD a.s."]
[Site "Dobrovice, Czech Republic"]
[Date "2020.02.29"]
[Round "3.6"]
[White "Hosticka Frantisek"]
[Black "Korinek Pavel"]
[Result "1-0"]
[TimeControl "15m + 3s / tah"]
[WhiteElo "2106"]
[BlackElo "1950"]

1. e4 {[%clk 00:15:05]} e5 {[%clk 00:15:03]} {[%emt 00:00:03]} 2. Bb5 {[%clk
00:15:06]} {[%emt 00:00:02]} Nf6 {[%clk 00:14:55]} {[%emt 00:00:11]} 3. Qe2
{[%clk 00:15:08]} {[%emt 00:00:01]} Bc5 {[%clk 00:14:51]} {[%emt 00:00:06]} 4.
Nf3 {[%clk 00:15:10]} {[%emt 00:00:02]} c6 {[%clk 00:14:51]} {[%emt 00:00:03]}
5. Ba4 {[%clk 00:15:12]} d6 {[%clk 00:14:53]} {[%emt 00:00:02]} 6. c3 {[%clk
00:15:14]} {[%emt 00:00:02]} O-O {[%clk 00:14:53]} {[%emt 00:00:02]} 7. O-O
{[%clk 00:15:16]} Bg4 {[%clk 00:14:46]} {[%emt 00:00:10]} 8. h3 {[%clk
00:15:16]} {[%emt 00:00:03]} Bh5 {[%clk 00:14:48]} {[%emt 00:00:01]} 9. d3
{[%clk 00:15:17]} {[%emt 00:00:02]} b5 {[%clk 00:14:09]} {[%emt 00:00:41]} 10.
Bc2 {[%clk 00:15:19]} {[%emt 00:00:01]} a5 {[%clk 00:14:09]} {[%emt 00:00:02]}
11. Rd1 {[%clk 00:15:00]} {[%emt 00:00:23]} Bb6 {[%clk 00:13:42]} {[%emt
00:00:30]} 12. Nbd2 {[%clk 00:15:02]} {[%emt 00:00:01]} Nbd7 {[%clk 00:13:43]}
{[%emt 00:00:01]} 13. Nf1 {[%clk 00:15:04]} Qc7 {[%clk 00:13:39]} {[%emt
00:00:08]} 14. Ng3 {[%clk 00:15:06]} Bg6 {[%clk 00:13:40]} {[%emt 00:00:03]} 15.
Nh4 {[%clk 00:15:09]} {[%emt 00:00:01]} d5 {[%clk 00:13:11]} {[%emt 00:00:30]}
16. Nhf5 {[%clk 00:15:01]} {[%emt 00:00:09]} Rae8 {[%clk 00:12:53]} {[%emt
00:00:22]} 17. Qf3 {[%clk 00:14:54]} {[%emt 00:00:11]} h6 {[%clk 00:12:27]}
{[%emt 00:00:29]} 18. h4 {[%clk 00:14:13]} {[%emt 00:00:44]} d4 {[%clk
00:12:02]} {[%emt 00:00:28]} 19. h5 {[%clk 00:14:12]} {[%emt 00:00:05]} Bh7
{[%clk 00:11:56]} {[%emt 00:00:09]} 20. a4 {[%clk 00:12:48]} {[%emt 00:01:27]}
dxc3 {[%clk 00:10:11]} {[%emt 00:01:48]} 21. bxc3 {[%clk 00:12:44]} {[%emt
00:00:07]} Bc5 {[%clk 00:10:12]} {[%emt 00:00:01]} 22. Bb3 {[%clk 00:12:08]}
{[%emt 00:00:40]} Kh8 {[%clk 00:09:33]} {[%emt 00:00:41]} 23. d4 {[%clk
00:11:17]} {[%emt 00:00:54]} exd4 {[%clk 00:09:21]} {[%emt 00:00:15]} 24. cxd4
{[%clk 00:11:16]} {[%emt 00:00:05]} Bb4 {[%clk 00:09:22]} {[%emt 00:00:02]} 25.
e5 {[%clk 00:10:48]} {[%emt 00:00:31]} Nd5 {[%clk 00:08:34]} {[%emt 00:00:51]}
26. Bxd5 {[%clk 00:10:27]} {[%emt 00:00:25]} cxd5 {[%clk 00:08:35]} {[%emt
00:00:01]} 27. axb5 {[%clk 00:09:57]} {[%emt 00:00:32]} Nb6 {[%clk 00:08:23]}
{[%emt 00:00:15]} 28. Nxg7 {[%clk 00:09:48]} {[%emt 00:00:13]} Kxg7 {[%clk
00:08:05]} {[%emt 00:00:21]} 29. Qf6+ {[%clk 00:09:50]} Kg8 {[%clk 00:07:45]}
{[%emt 00:00:23]} 30. Bxh6 {[%clk 00:09:52]} {[%emt 00:00:02]} Re6 {[%clk
00:07:40]} {[%emt 00:00:07]} 31. Qg7# {[%emt 00:00:01]} 1-0

[Event "15. ročník Dobrovický rapid Tereos TTD a.s."]
[Site "Dobrovice, Czech Republic"]
[Date "2020.02.29"]
[Round "3.7"]
[White "Danek Pavel"]
[Black "Kaderabek Jiri"]
[Result "1/2-1/2"]
[TimeControl "15m + 3s / tah"]
[WhiteElo "1844"]
[BlackElo "2105"]

1. d4 {[%clk 00:15:05]} {[%emt 00:00:01]} Nf6 {[%clk 00:15:05]} {[%emt
00:00:02]} 2. Nf3 {[%clk 00:15:06]} {[%emt 00:00:01]} b6 {[%clk 00:15:06]}
{[%emt 00:00:01]} 3. Bg5 {[%clk 00:15:07]} {[%emt 00:00:02]} Bb7 {[%clk
00:15:04]} {[%emt 00:00:05]} 4. Nbd2 {[%clk 00:15:09]} {[%emt 00:00:01]} g6
{[%clk 00:15:00]} {[%emt 00:00:08]} 5. e3 {[%clk 00:15:06]} {[%emt 00:00:06]}
Bg7 {[%clk 00:15:01]} {[%emt 00:00:02]} 6. Bd3 {[%clk 00:15:08]} {[%emt
00:00:01]} d6 {[%clk 00:14:56]} {[%emt 00:00:08]} 7. c3 {[%clk 00:15:05]}
{[%emt 00:00:06]} Nbd7 {[%clk 00:14:54]} {[%emt 00:00:04]} 8. Qc2 {[%clk
00:15:02]} {[%emt 00:00:06]} c5 {[%clk 00:14:50]} {[%emt 00:00:07]} 9. O-O
{[%clk 00:14:47]} {[%emt 00:00:18]} O-O {[%clk 00:14:43]} {[%emt 00:00:09]} 10.
Rae1 {[%clk 00:13:57]} {[%emt 00:00:54]} Qc7 {[%clk 00:14:35]} {[%emt
00:00:10]} 11. Qb1 {[%clk 00:13:41]} {[%emt 00:00:18]} Rfe8 {[%clk 00:14:04]}
{[%emt 00:00:34]} 12. Ne4 {[%clk 00:13:21]} {[%emt 00:00:24]} Nxe4 {[%clk
00:13:42]} {[%emt 00:00:25]} 13. Bxe4 {[%clk 00:13:21]} {[%emt 00:00:03]} d5
{[%clk 00:13:44]} {[%emt 00:00:01]} 14. Bd3 {[%clk 00:13:14]} {[%emt 00:00:10]}
f6 {[%clk 00:13:08]} {[%emt 00:00:38]} 15. Bh4 {[%clk 00:13:09]} {[%emt
00:00:09]} e5 {[%clk 00:13:05]} {[%emt 00:00:07]} 16. dxe5 {[%clk 00:11:35]}
{[%emt 00:01:36]} fxe5 {[%clk 00:13:03]} {[%emt 00:00:05]} 17. e4 {[%clk
00:11:11]} {[%emt 00:00:27]} d4 {[%clk 00:12:32]} {[%emt 00:00:34]} 18. Bc4+
{[%clk 00:10:25]} {[%emt 00:00:49]} Kh8 {[%clk 00:12:19]} {[%emt 00:00:16]} 19.
Ng5 {[%clk 00:10:19]} {[%emt 00:00:10]} Bf6 {[%clk 00:11:36]} {[%emt 00:00:44]}
20. Nf7+ {[%clk 00:07:37]} {[%emt 00:02:46]} Kg7 {[%clk 00:11:29]} {[%emt
00:00:10]} 21. Qc1 {[%clk 00:07:21]} {[%emt 00:00:19]} Bxh4 {[%clk 00:08:14]}
{[%emt 00:03:19]} 22. Qh6+ {[%clk 00:07:10]} {[%emt 00:00:13]} Kf6 {[%clk
00:08:12]} {[%emt 00:00:04]} 23. Qxh4+ {[%clk 00:06:57]} {[%emt 00:00:17]} Kg7
{[%clk 00:08:14]} {[%emt 00:00:01]} 24. Qh6+ {[%clk 00:06:25]} {[%emt
00:00:35]} Kf6 {[%clk 00:08:12]} {[%emt 00:00:05]} 25. f4 {[%clk 00:04:40]}
{[%emt 00:01:37]} Ke7 1/2-1/2

[Event "15. ročník Dobrovický rapid Tereos TTD a.s."]
[Site "Dobrovice, Czech Republic"]
[Date "2020.02.29"]
[Round "3.8"]
[White "Zahorbensky Jaroslav"]
[Black "Partl Miloslav"]
[Result "1-0"]
[TimeControl "15m + 3s / tah"]
[WhiteElo "2105"]
[BlackElo "1841"]

1. e4 {[%clk 00:15:04]} {[%emt 00:00:02]} d6 {[%clk 00:15:05]} {[%emt
00:00:03]} 2. d4 {[%clk 00:15:05]} {[%emt 00:00:01]} c6 {[%clk 00:15:08]}
{[%emt 00:00:01]} 3. a4 {[%clk 00:15:07]} {[%emt 00:00:01]} a5 {[%clk
00:15:09]} {[%emt 00:00:01]} 4. Nf3 {[%clk 00:15:08]} {[%emt 00:00:02]} Na6
{[%clk 00:15:11]} 5. c3 {[%clk 00:15:06]} {[%emt 00:00:06]} g6 {[%clk
00:15:13]} {[%emt 00:00:01]} 6. Bd3 {[%clk 00:15:07]} {[%emt 00:00:02]} Bg7
{[%clk 00:15:16]} 7. O-O {[%clk 00:15:07]} {[%emt 00:00:02]} Nf6 {[%clk
00:15:17]} {[%emt 00:00:01]} 8. h3 {[%clk 00:15:05]} {[%emt 00:00:06]} O-O
{[%clk 00:15:19]} {[%emt 00:00:02]} 9. Be3 {[%clk 00:15:06]} {[%emt 00:00:02]}
Bd7 {[%clk 00:15:15]} {[%emt 00:00:06]} 10. Qd2 {[%clk 00:15:01]} {[%emt
00:00:08]} Nc7 {[%clk 00:15:17]} {[%emt 00:00:01]} 11. Na3 {[%clk 00:14:56]}
{[%emt 00:00:08]} b5 {[%clk 00:15:18]} {[%emt 00:00:01]} 12. Bh6 {[%clk
00:14:45]} {[%emt 00:00:13]} d5 {[%clk 00:15:09]} {[%emt 00:00:12]} 13. Bxg7
{[%clk 00:14:25]} {[%emt 00:00:24]} Kxg7 {[%clk 00:15:11]} {[%emt 00:00:02]} 14.
e5 {[%clk 00:14:27]} {[%emt 00:00:01]} Ne4 {[%clk 00:15:12]} {[%emt 00:00:02]}
15. Bxe4 {[%clk 00:13:55]} {[%emt 00:00:35]} dxe4 {[%clk 00:15:14]} 16. Ng5
{[%clk 00:13:54]} {[%emt 00:00:04]} b4 {[%clk 00:15:15]} {[%emt 00:00:02]} 17.
Nc4 {[%clk 00:13:45]} {[%emt 00:00:11]} bxc3 {[%clk 00:15:03]} {[%emt
00:00:16]} 18. bxc3 {[%clk 00:13:45]} {[%emt 00:00:02]} f5 {[%clk 00:14:05]}
{[%emt 00:01:02]} 19. exf6+ {[%clk 00:13:44]} {[%emt 00:00:04]} exf6 {[%clk
00:14:07]} {[%emt 00:00:01]} 20. Nxe4 {[%clk 00:13:43]} {[%emt 00:00:04]} Be6
{[%clk 00:13:59]} {[%emt 00:00:10]} 21. Ne3 {[%clk 00:13:02]} {[%emt 00:00:43]}
Nd5 {[%clk 00:14:01]} {[%emt 00:00:02]} 22. Nc5 {[%clk 00:12:59]} {[%emt
00:00:06]} Bg8 {[%clk 00:13:53]} {[%emt 00:00:11]} 23. Ng4 {[%clk 00:12:34]}
{[%emt 00:00:28]} h5 {[%clk 00:13:34]} {[%emt 00:00:22]} 24. Nh2 {[%clk
00:10:43]} {[%emt 00:01:54]} Rb8 {[%clk 00:13:19]} {[%emt 00:00:18]} 25. Rab1
{[%clk 00:10:44]} {[%emt 00:00:02]} Qd6 {[%clk 00:13:20]} {[%emt 00:00:02]} 26.
Nf3 {[%clk 00:10:33]} {[%emt 00:00:14]} Nf4 {[%clk 00:13:05]} {[%emt 00:00:18]}
27. Rfe1 {[%clk 00:09:56]} {[%emt 00:00:40]} Rxb1 {[%clk 00:12:49]} {[%emt
00:00:19]} 28. Rxb1 {[%clk 00:09:57]} {[%emt 00:00:02]} Bd5 {[%clk 00:12:51]}
{[%emt 00:00:01]} 29. Rb7+ {[%clk 00:08:50]} {[%emt 00:01:09]} Rf7 {[%clk
00:12:53]} {[%emt 00:00:01]} 30. Rxf7+ {[%clk 00:08:51]} {[%emt 00:00:03]} Kxf7
{[%clk 00:12:55]} 31. Qe3 {[%clk 00:08:51]} {[%emt 00:00:02]} g5 {[%clk
00:12:35]} {[%emt 00:00:23]} 32. Ne1 {[%clk 00:07:57]} {[%emt 00:00:57]} g4
{[%clk 00:11:51]} {[%emt 00:00:48]} 33. hxg4 {[%clk 00:07:54]} {[%emt
00:00:06]} hxg4 {[%clk 00:11:52]} {[%emt 00:00:01]} 34. Ncd3 {[%clk 00:07:26]}
{[%emt 00:00:30]} Ne6 {[%clk 00:10:44]} {[%emt 00:01:11]} 35. f3 {[%clk
00:05:28]} {[%emt 00:02:02]} g3 {[%clk 00:10:21]} {[%emt 00:00:26]} 36. f4
{[%clk 00:05:29]} {[%emt 00:00:02]} Bc4 {[%clk 00:10:19]} {[%emt 00:00:06]} 37.
Qxg3 {[%clk 00:05:25]} {[%emt 00:00:07]} Qa3 {[%clk 00:10:20]} {[%emt
00:00:01]} 38. f5 {[%clk 00:05:11]} {[%emt 00:00:18]} Nxd4 {[%clk 00:10:13]}
{[%emt 00:00:10]} 39. cxd4 {[%clk 00:05:07]} {[%emt 00:00:07]} Qa1 {[%clk
00:10:03]} {[%emt 00:00:12]} 40. Qc7+ {[%clk 00:04:38]} {[%emt 00:00:33]} Kf8
{[%clk 00:10:04]} {[%emt 00:00:02]} 41. Qd6+ {[%clk 00:04:18]} {[%emt
00:00:23]} Kg7 {[%clk 00:10:01]} {[%emt 00:00:06]} 42. Kh2 {[%clk 00:04:19]}
{[%emt 00:00:02]} Qxa4 {[%clk 00:09:52]} {[%emt 00:00:11]} 43. Nf4 {[%clk
00:04:04]} {[%emt 00:00:18]} Qd1 {[%clk 00:09:30]} {[%emt 00:00:25]} 44. Nf3
{[%clk 00:04:02]} {[%emt 00:00:06]} a4 {[%clk 00:08:12]} {[%emt 00:01:21]} 45.
Qe7+ {[%clk 00:03:47]} {[%emt 00:00:18]} Kg8 {[%clk 00:07:43]} {[%emt
00:00:32]} 46. Ng6 {[%clk 00:03:32]} {[%emt 00:00:18]} Qb3 {[%emt 00:00:38]}
1-0

[Event "15. ročník Dobrovický rapid Tereos TTD a.s."]
[Site "Dobrovice, Czech Republic"]
[Date "2020.02.29"]
[Round "3.9"]
[White "Szeko Ludovit"]
[Black "Pirvulescu Adrian"]
[Result "1-0"]
[TimeControl "15m + 3s / tah"]
[WhiteElo "2051"]
[BlackElo "1829"]

1. Nf3 {[%clk 00:15:04]} {[%emt 00:00:02]} c5 {[%clk 00:15:05]} {[%emt
00:00:02]} 2. g3 {[%clk 00:15:06]} g6 {[%clk 00:15:06]} {[%emt 00:00:02]} 3.
Bg2 {[%clk 00:15:08]} Bg7 {[%clk 00:15:08]} 4. d3 {[%clk 00:15:11]} Nc6 {[%clk
00:15:05]} {[%emt 00:00:05]} 5. O-O {[%clk 00:15:12]} {[%emt 00:00:02]} d6
{[%clk 00:15:00]} {[%emt 00:00:08]} 6. e4 {[%clk 00:15:14]} {[%emt 00:00:02]}
e5 {[%clk 00:15:02]} 7. c3 {[%clk 00:15:14]} {[%emt 00:00:02]} Nge7 {[%clk
00:14:57]} {[%emt 00:00:08]} 8. Nbd2 {[%clk 00:15:11]} {[%emt 00:00:06]} a5
{[%clk 00:13:54]} {[%emt 00:01:07]} 9. a4 {[%clk 00:15:08]} {[%emt 00:00:06]}
O-O {[%clk 00:13:30]} {[%emt 00:00:27]} 10. Qc2 {[%clk 00:15:10]} d5 {[%clk
00:12:06]} {[%emt 00:01:28]} 11. Re1 {[%clk 00:15:09]} {[%emt 00:00:03]} d4
{[%clk 00:11:44]} {[%emt 00:00:26]} 12. Nc4 {[%clk 00:15:03]} {[%emt 00:00:08]}
Be6 {[%clk 00:11:01]} {[%emt 00:00:46]} 13. Na3 {[%clk 00:14:55]} {[%emt
00:00:11]} h6 {[%clk 00:10:28]} {[%emt 00:00:36]} 14. Nb5 {[%clk 00:14:56]} Qd7
{[%clk 00:10:11]} {[%emt 00:00:21]} 15. Bd2 {[%clk 00:14:16]} {[%emt 00:00:43]}
Rfd8 {[%clk 00:09:04]} {[%emt 00:01:10]} 16. c4 {[%clk 00:14:08]} {[%emt
00:00:11]} Bh3 {[%clk 00:06:06]} {[%emt 00:03:01]} 17. Rad1 {[%clk 00:13:23]}
{[%emt 00:00:48]} Kh7 {[%clk 00:05:37]} {[%emt 00:00:33]} 18. Bc1 {[%clk
00:13:25]} {[%emt 00:00:01]} Nb4 {[%clk 00:05:25]} {[%emt 00:00:14]} 19. Qe2
{[%clk 00:13:26]} {[%emt 00:00:02]} Bg4 {[%clk 00:04:45]} {[%emt 00:00:44]} 20.
Qf1 {[%clk 00:13:10]} {[%emt 00:00:19]} Ra6 {[%clk 00:04:43]} {[%emt 00:00:05]}
21. h3 {[%clk 00:13:12]} {[%emt 00:00:02]} Be6 {[%clk 00:03:55]} {[%emt
00:00:50]} 22. g4 {[%clk 00:13:05]} {[%emt 00:00:10]} g5 {[%clk 00:03:41]}
{[%emt 00:00:18]} 23. Nh2 {[%clk 00:12:46]} {[%emt 00:00:22]} Ng6 {[%clk
00:03:36]} {[%emt 00:00:08]} 24. Qe2 {[%clk 00:12:27]} {[%emt 00:00:21]} f6
{[%emt 00:01:49]} 25. Nf1 {[%clk 00:12:27]} {[%emt 00:00:02]} Nh4 {[%clk
00:01:45]} {[%emt 00:00:10]} 26. Ng3 {[%clk 00:12:23]} {[%emt 00:00:07]} Rc8
{[%clk 00:01:00]} {[%emt 00:00:47]} 27. Bh1 {[%clk 00:11:42]} {[%emt 00:00:44]}
Bf7 {[%clk 00:01:02]} {[%emt 00:00:01]} 28. Nf5 {[%clk 00:11:40]} {[%emt
00:00:05]} Nxf5 {[%clk 00:00:31]} {[%emt 00:00:34]} 29. exf5 {[%clk 00:11:41]}
{[%emt 00:00:02]} Be8 {[%clk 00:00:19]} {[%emt 00:00:15]} 30. Be4 {[%clk
00:11:39]} {[%emt 00:00:04]} Qe7 {[%clk 00:00:16]} {[%emt 00:00:06]} 31. f4
{[%clk 00:10:26]} {[%emt 00:01:17]} exf4 {[%clk 00:00:11]} {[%emt 00:00:08]} 32.
Qf3 {[%clk 00:10:26]} {[%emt 00:00:03]} Bxb5 {[%clk 00:00:00]} {[%emt
00:00:11]} 33. axb5 {[%clk 00:10:20]} {[%emt 00:00:06]} Rb6 {[%clk 00:00:00]}
{[%emt 00:00:01]} 34. h4 {[%clk 00:10:05]} {[%emt 00:00:16]} Qc7 {[%clk
00:00:00]} {[%emt 00:00:01]} 35. Re2 {[%clk 00:10:05]} {[%emt 00:00:18]} Rd8
{[%clk 00:00:00]} {[%emt 00:00:05]} 36. Rh2 {[%clk 00:10:05]} {[%emt 00:00:02]}
Na2 {[%clk 00:00:00]} {[%emt 00:00:03]} 37. Bd2 {[%clk 00:10:05]} {[%emt
00:00:03]} Nb4 {[%clk 00:00:00]} {[%emt 00:00:02]} 38. Kg2 {[%clk 00:10:05]}
{[%emt 00:00:06]} Rd7 {[%clk 00:00:00]} {[%emt 00:00:02]} 39. Rdh1 {[%clk
00:10:05]} {[%emt 00:00:01]} Re7 {[%clk 00:00:00]} {[%emt 00:00:04]} 1-0

[Event "15. ročník Dobrovický rapid Tereos TTD a.s."]
[Site "Dobrovice, Czech Republic"]
[Date "2020.02.29"]
[Round "3.12"]
[White "Joukl Zdenek"]
[Black "Rezac Jindrich"]
[Result "1-0"]
[TimeControl "15m + 3s / tah"]
[WhiteElo "2022"]
[BlackElo "1806"]

1. d4 {[%clk 00:15:04]} {[%emt 00:07:17]} Nf6 {[%clk 00:15:01]} {[%emt
00:00:06]} 2. Nf3 {[%clk 00:15:04]} {[%emt 00:00:03]} d5 {[%clk 00:14:58]}
{[%emt 00:00:06]} 3. Bf4 {[%clk 00:14:57]} {[%emt 00:00:09]} Bf5 {[%clk
00:14:51]} {[%emt 00:00:10]} 4. e3 {[%clk 00:14:52]} {[%emt 00:00:07]} e6
{[%clk 00:14:45]} {[%emt 00:00:10]} 5. Be2 {[%clk 00:14:37]} {[%emt 00:00:18]}
c5 {[%clk 00:14:06]} {[%emt 00:00:42]} 6. c3 {[%clk 00:13:21]} {[%emt
00:01:20]} Be7 {[%clk 00:13:37]} {[%emt 00:00:32]} 7. h3 {[%clk 00:13:06]}
{[%emt 00:00:18]} h6 {[%clk 00:13:29]} {[%emt 00:00:11]} 8. Nbd2 {[%clk
00:12:57]} {[%emt 00:00:12]} Nc6 {[%clk 00:13:10]} {[%emt 00:00:22]} 9. O-O
{[%clk 00:12:50]} {[%emt 00:00:10]} O-O {[%clk 00:13:10]} {[%emt 00:00:03]} 10.
Ne5 {[%clk 00:12:38]} {[%emt 00:00:16]} Nxe5 {[%clk 00:11:57]} {[%emt
00:01:16]} 11. dxe5 {[%clk 00:12:38]} {[%emt 00:00:02]} Ne4 {[%clk 00:11:18]}
{[%emt 00:00:42]} 12. f3 {[%clk 00:11:49]} {[%emt 00:00:52]} Nxd2 {[%clk
00:10:18]} {[%emt 00:01:03]} 13. Qxd2 {[%clk 00:11:50]} {[%emt 00:00:02]} Qb6
{[%clk 00:09:54]} {[%emt 00:00:27]} 14. Kh1 {[%clk 00:11:07]} {[%emt 00:00:45]}
Rfd8 {[%clk 00:09:30]} {[%emt 00:00:28]} 15. Rfd1 {[%clk 00:10:53]} {[%emt
00:00:18]} Rac8 {[%clk 00:08:39]} {[%emt 00:00:53]} 16. b3 {[%clk 00:09:50]}
{[%emt 00:01:06]} f6 {[%clk 00:06:42]} {[%emt 00:02:00]} 17. Qb2 {[%clk
00:09:04]} {[%emt 00:00:49]} d4 {[%clk 00:05:21]} {[%emt 00:01:25]} 18. e4
{[%clk 00:07:34]} {[%emt 00:01:33]} Bg6 {[%clk 00:04:37]} {[%emt 00:00:46]} 19.
Bc4 {[%clk 00:06:33]} {[%emt 00:01:04]} fxe5 {[%clk 00:03:14]} {[%emt
00:01:27]} 20. Bxe5 {[%clk 00:06:32]} {[%emt 00:00:04]} Bf6 {[%clk 00:03:13]}
{[%emt 00:00:04]} 21. Bxf6 {[%clk 00:05:13]} {[%emt 00:01:21]} gxf6 {[%clk
00:03:13]} {[%emt 00:00:04]} 22. cxd4 {[%clk 00:04:36]} {[%emt 00:00:40]} Rxd4
{[%clk 00:02:24]} {[%emt 00:00:52]} 23. Rxd4 {[%clk 00:04:03]} {[%emt
00:00:36]} cxd4 {[%clk 00:02:25]} {[%emt 00:00:03]} 24. Rd1 {[%clk 00:02:49]}
{[%emt 00:01:17]} Rd8 {[%clk 00:02:19]} {[%emt 00:00:09]} 25. Qa3 {[%clk
00:02:46]} {[%emt 00:00:06]} Rd7 {[%clk 00:01:36]} {[%emt 00:00:46]} 26. Qa4
{[%clk 00:02:21]} {[%emt 00:00:28]} Rd8 {[%clk 00:01:05]} {[%emt 00:00:34]} 27.
Qa3 {[%clk 00:02:14]} {[%emt 00:00:11]} Rd7 {[%clk 00:01:04]} {[%emt 00:00:04]}
28. Qc1 {[%clk 00:02:08]} {[%emt 00:00:09]} Kg7 {[%clk 00:00:53]} {[%emt
00:00:14]} 29. Qf4 {[%clk 00:02:09]} {[%emt 00:00:02]} Qd6 {[%clk 00:00:41]}
{[%emt 00:00:15]} 30. Qg4 {[%clk 00:01:53]} {[%emt 00:00:18]} e5 {[%clk
00:00:22]} {[%emt 00:00:23]} 31. h4 {[%clk 00:01:51]} {[%emt 00:00:05]} h5
{[%clk 00:00:10]} {[%emt 00:00:14]} 32. Qg3 {[%clk 00:01:50]} {[%emt 00:00:04]}
a6 {[%clk 00:00:09]} {[%emt 00:00:05]} 33. a4 {[%clk 00:01:48]} {[%emt
00:00:05]} Qb4 {[%clk 00:00:08]} {[%emt 00:00:04]} 34. f4 {[%emt 00:00:10]}
exf4 {[%clk 00:00:06]} {[%emt 00:00:04]} 35. Qxf4 {[%clk 00:01:42]} {[%emt
00:00:03]} Qc3 {[%clk 00:00:04]} {[%emt 00:00:06]} 36. Rf1 {[%clk 00:01:33]}
{[%emt 00:00:11]} d3 {[%clk 00:00:06]} {[%emt 00:00:01]} 37. Be6 {[%clk
00:01:12]} {[%emt 00:00:24]} Re7 {[%clk 00:00:08]} {[%emt 00:00:01]} 38. Bf5
{[%clk 00:01:04]} {[%emt 00:00:11]} d2 {[%clk 00:00:06]} {[%emt 00:00:05]} 39.
Bxg6 {[%clk 00:00:43]} {[%emt 00:00:24]} Kxg6 {[%clk 00:00:09]} 40. Rd1 {[%clk
00:00:35]} {[%emt 00:00:10]} Rd7 {[%clk 00:00:06]} {[%emt 00:00:06]} 41. Qf5+
{[%clk 00:00:36]} {[%emt 00:00:02]} Kg7 {[%emt 00:00:22]} 42. Qf4 {[%emt
00:00:02]} 1-0